bitfinex/quotes_ETHUSD_20251118
["timestamp","ask_amount","ask_price","bid_price","bid_amount"]
[1763433451740,0.04124187,3030.9,3029.1,1.17000906]
[1763433452019,0.4594,3030.8,3029.0,0.001]
[1763433452243,0.4594,3030.8,3029.0,0.406504]
[1763433452422,0.50064323,3030.8,3029.0,0.406504]
[1763433452768,0.405504,3030.7,3029.0,0.001]
[1763433452917,0.405504,3030.5,3029.0,0.001]
[1763433453123,0.1853,3029.1,3029.0,0.001]
[1763433453429,0.6447,3029.1,3029.0,0.001]
[1763433453731,0.4594,3029.6,3029.0,0.001]
[1763433453933,0.1853,3029.1,3029.0,0.001]
[1763433454569,0.6447,3029.1,3029.0,0.001]
[1763433455521,0.4594,3029.5,3029.0,0.001]
[1763433455722,0.1853,3029.3,3029.0,0.001]
[1763433456861,0.4674,3029.7,3029.0,0.001]
[1763433457169,0.1853,3029.1,3029.0,0.001]
[1763433457961,0.4674,3029.6,3029.0,0.001]
[1763433458525,0.6636,3030.4,3029.1,0.472]
[1763433458780,0.50264323,3032.3,3029.5,1.35650906]
[1763433458781,0.4674,3030.8,3029.5,1.35650906]
[1763433459067,0.4674,3030.8,3029.6,1.17000906]
[1763433459068,0.1896,3030.3,3029.6,1.17000906]
[1763433459227,0.657,3030.3,3029.5,0.31105316]
[1763433459426,0.1896,3030.3,3029.5,0.1865]
[1763433459733,0.4674,3030.9,3029.6,1.17000906]
[1763433460332,0.4674,3030.9,3029.5,0.1865]
[1763433460333,0.04124323,3030.8,3029.5,1.17000906]
[1763433460564,0.90699264,3031.1,3029.3,1.17000906]
[1763433460565,0.4674,3030.7,3029.3,1.17000906]
[1763433460765,0.1856,3031.2,3029.4,0.472]
[1763433460941,0.4674,3031.1,3029.6,1.17000906]
[1763433461141,0.4674,3031.1,3029.5,1.17000906]
[1763433461480,0.4674,3031.1,3029.6,1.17000906]
[1763433462440,0.4674,3031.1,3029.8,1.17000906]
[1763433462845,0.4674,3031.1,3029.9,1.17000906]
[1763433463183,0.405504,3031.0,3029.5,1.17000906]
[1763433463386,0.405504,3031.0,3029.6,1.17000906]
[1763433463387,1.31249664,3031.0,3029.6,1.17000906]
[1763433463559,0.405504,3030.8,3029.4,1.17000906]
[1763433463883,0.405504,3030.8,3029.5,1.17000906]
[1763433464179,0.4674,3030.7,3029.5,1.17000906]
[1763433464488,0.4674,3030.7,3029.5,1.46241222]
[1763433464983,1.37439264,3030.7,3029.5,1.46241222]
[1763433465177,0.4674,3030.7,3029.5,1.46241222]
[1763433465378,0.4674,3030.7,3029.6,1.17000906]
[1763433465605,0.4674,3030.6,3029.7,1.17000906]
[1763433466556,0.4674,3030.6,3029.7,1.49165254]
[1763433466796,1.37439264,3030.6,3029.7,1.49165254]
[1763433467186,1.09259264,3031.2,3030.0,1.17000906]
[1763433467187,0.653,3031.2,3030.0,1.17000906]
[1763433467377,0.653,3031.2,3030.2,1.17000906]
[1763433467695,0.4674,3031.1,3030.2,1.17000906]
[1763433467854,0.1856,3031.2,3030.3,1.17000906]
[1763433468061,0.1856,3031.2,3030.6,1.17000906]
[1763433468267,3.488,3032.2,3031.1,0.1865]
[1763433468268,0.1896,3032.0,3031.1,0.1865]
[1763433468578,0.1896,3032.0,3031.4,1.18306258]
[1763433469009,0.1896,3032.0,3031.5,1.18306258]
[1763433469165,0.657,3032.0,3031.6,1.18306258]
[1763433469583,0.002,3032.7,3031.9,1.75402253]
[1763433469785,0.002,3032.7,3032.2,1.18182231]
[1763433470006,0.002,3032.7,3032.1,0.1865]
[1763433470210,0.002,3032.7,3032.2,1.7691884]
[1763433470502,0.002,3032.7,3032.2,1.76921211]
[1763433470706,0.002,3032.7,3032.2,0.64892121]
[1763433471004,0.002,3032.7,3032.2,0.472]
[1763433471380,0.002,3032.7,3032.2,0.877504]
[1763433471834,0.002,3032.7,3031.9,2.33970101]
[1763433472005,0.002,3032.7,3032.0,1.76685278]
[1763433472308,0.002,3032.7,3032.1,1.17786954]
[1763433472471,0.002,3032.7,3032.0,1.17786954]
[1763433473004,0.002,3032.7,3031.7,1.95335278]
[1763433473005,0.4674,3032.2,3031.7,1.17786954]
[1763433473213,0.4674,3032.2,3031.5,1.17786954]
[1763433473512,0.4674,3032.2,3031.4,1.17786954]
[1763433473715,0.4674,3032.2,3031.3,1.17786954]
[1763433474011,0.4674,3032.2,3031.3,1.49099177]
[1763433474182,0.4694,3032.7,3031.3,1.49099177]
[1763433474383,0.4694,3032.3,3031.3,1.49099177]
[1763433474811,0.4694,3032.3,3031.4,1.17786954]
[1763433475413,0.4694,3032.3,3030.9,1.17786954]
[1763433475629,0.4694,3032.3,3030.9,1.47234177]
[1763433475928,0.4694,3032.3,3031.1,1.17786954]
[1763433476433,0.4694,3032.3,3031.3,1.17786954]
[1763433477207,0.4694,3032.3,3031.2,1.17786954]
[1763433477397,0.4694,3032.3,3031.1,0.1865]
[1763433477598,0.002,3032.3,3031.3,1.17786954]
[1763433477807,0.002,3032.3,3031.7,0.88284504]
[1763433478007,0.002,3032.3,3031.1,0.6585]
[1763433478008,0.002,3032.3,3032.0,0.88284504]
[1763433478435,0.002,3032.3,3032.2,0.88284504]
[1763433479296,0.002,3032.3,3032.2,1.35484504]
[1763433479501,0.002,3032.3,3032.2,0.72527146]
[1763433480034,0.002,3032.3,3032.2,1.13077546]
[1763433480218,0.002,3032.3,3032.2,0.472]
[1763433480416,0.002,3032.3,3032.2,2.23353935]
[1763433480751,0.002,3032.7,3032.3,0.405504]
[1763433481034,0.002,3032.7,3032.5,1.76102304]
[1763433481233,0.002,3032.7,3032.5,1.17408354]
[1763433481439,0.002,3032.7,3032.2,0.88071283]
[1763433481601,0.002,3032.7,3032.3,0.20547964]
[1763433481793,0.002,3032.7,3032.3,0.88071283]
[1763433482640,0.4694,3032.7,3032.1,0.88071283]
[1763433482837,0.4694,3032.7,3032.0,0.88071283]
[1763433483257,0.4694,3032.7,3031.1,2.53453072]
[1763433483258,0.04121875,3032.6,3031.8,0.88071283]
[1763433483407,0.002,3032.7,3032.1,0.001]
[1763433483836,0.002,3032.3,3032.1,0.001]
[1763433484254,0.002,3032.3,3032.2,0.88071283]
[1763433484432,0.002,3032.3,3032.2,0.72477964]
[1763433484748,0.002,3032.3,3032.2,0.8804229]
[1763433485047,0.002,3032.3,3032.1,0.8814229]
[1763433485348,0.002,3032.3,3032.1,1.17508354]
[1763433485720,0.002,3032.3,3032.2,0.8809888]
[1763433485916,0.002,3032.3,3032.1,1.62598354]
[1763433486343,0.002,3032.3,3032.2,0.4509]
[1763433486651,0.002,3032.3,3032.2,0.6721923]
[1763433486946,0.002,3032.3,3032.2,0.4509]
[1763433487246,0.002,3032.3,3032.2,1.76275191]
[1763433487545,0.002,3032.3,3032.1,1.17708577]
[1763433487750,0.002,3032.3,3032.2,0.4509]
[1763433487949,0.002,3032.3,3032.2,2.21365191]
[1763433488109,0.002,3032.3,3032.2,1.9842171]
[1763433488427,0.002,3032.3,3032.2,0.22146519]
[1763433488628,0.002,3032.3,3032.1,0.001]
[1763433488829,0.002,3032.3,3032.2,0.4509]
[1763433489353,0.002,3032.3,3032.2,3.20443472]
[1763433489528,0.002,3032.3,3032.2,0.856404]
[1763433489921,0.002,3032.3,3032.2,3.20938953]
[1763433490118,0.002,3032.3,3032.2,3.53042848]
[1763433490336,0.002,3032.3,3032.2,3.52934361]
[1763433490846,0.002,3032.3,3032.2,1.17744295]
[1763433491158,0.002,3032.3,3032.2,0.4509]
[1763433491306,0.002,3032.7,3032.3,0.405504]
[1763433491506,0.002,3032.7,3032.2,0.4509]
[1763433491507,0.002,3032.7,3032.5,2.75736376]
[1763433491906,0.002,3032.7,3032.6,0.4509]
[1763433492410,0.002,3032.7,3032.6,2.80275976]
[1763433492754,0.002,3032.7,3032.6,0.77172638]
[1763433492937,0.002,3032.7,3032.6,0.4509]
[1763433493106,0.002,3032.7,3032.6,0.856404]
[1763433493305,0.002,3033.0,3032.7,0.405504]
[1763433493533,0.002,3033.0,3032.7,3.78103026]
[1763433493750,0.002,3033.0,3032.9,0.405504]
[1763433493948,0.1896,3035.4,3032.9,0.405504]
[1763433493949,0.666,3035.1,3032.9,0.62239406]
[1763433494159,0.666,3035.1,3034.3,0.88091668]
[1763433494322,0.1896,3035.1,3034.6,0.88091668]
[1763433494654,0.4764,3035.0,3034.6,0.88091668]
[1763433494812,0.1896,3035.1,3034.6,0.88091668]
[1763433495152,0.666,3035.1,3034.6,0.88091668]
[1763433495451,0.1896,3035.1,3034.8,0.88091668]
[1763433495608,0.1896,3035.1,3034.6,1.17455558]
[1763433495609,0.4764,3035.0,3034.6,0.88091668]
[1763433495807,0.4764,3035.0,3034.4,0.88091668]
[1763433496034,0.1896,3035.1,3034.6,0.88091668]
[1763433496233,0.4764,3034.9,3034.6,0.88091668]
[1763433496518,0.4764,3034.9,3034.5,0.88091668]
[1763433497460,0.4764,3034.9,3034.0,0.88091668]
[1763433497461,0.405504,3034.8,3034.0,0.88091668]
[1763433497616,0.405504,3034.8,3033.8,1.17455558]
[1763433497617,0.405504,3034.8,3033.9,0.88091668]
[1763433497812,0.405504,3034.6,3033.9,0.88091668]
[1763433498046,0.04119294,3034.5,3033.6,0.88091668]
[1763433498315,0.405504,3034.5,3033.6,0.88091668]
[1763433498512,0.1837,3033.7,3033.3,0.88091668]
[1763433498708,0.1837,3033.7,3033.1,1.17455558]
[1763433498709,0.1837,3033.7,3033.2,0.88091668]
[1763433499114,0.1837,3033.7,3033.3,0.88091668]
[1763433499352,0.4703,3033.6,3033.5,0.88091668]
[1763433499557,0.4703,3033.6,3033.4,0.88091668]
[1763433499710,0.4703,3033.6,3032.6,2.53901117]
[1763433499711,0.4703,3033.6,3033.3,0.88091668]
[1763433499915,0.1837,3033.7,3033.3,0.88091668]
[1763433500143,0.1837,3033.7,3033.4,0.88091668]
[1763433500672,0.1837,3033.7,3033.5,0.88091668]
[1763433500957,0.1849,3034.0,3033.4,0.88091668]
[1763433501137,0.1849,3034.0,3033.4,1.08646391]
[1763433501343,0.1849,3034.0,3033.5,0.88091668]
[1763433501658,0.1849,3034.0,3033.6,0.88091668]
[1763433501815,0.1849,3034.0,3033.7,0.88091668]
[1763433502210,0.1849,3034.0,3033.5,1.17455558]
[1763433502211,0.4703,3033.9,3033.6,0.88091668]
[1763433502452,0.04120245,3033.8,3033.3,0.88091668]
[1763433502624,0.4703,3033.9,3033.1,0.88091668]
[1763433502824,0.4703,3033.9,3033.2,0.88091668]
[1763433503030,0.405504,3033.8,3033.1,0.88091668]
[1763433503234,0.405504,3033.8,3033.0,0.88091668]
[1763433503518,0.405504,3033.8,3032.5,0.88091668]
[1763433503519,0.405504,3033.6,3032.5,0.88091668]
[1763433503755,0.405504,3033.6,3032.3,0.88091668]
[1763433503934,0.1849,3032.4,3032.3,0.88091668]
[1763433504667,0.6552,3032.4,3032.3,0.88091668]
[1763433504839,0.6552,3032.4,3032.1,0.001]
[1763433505021,0.4703,3032.3,3032.1,0.001]
[1763433505953,0.405504,3032.2,3032.1,0.001]
[1763433506157,0.405504,3032.1,3031.5,0.001]
[1763433506392,0.405504,3031.8,3031.5,0.001]
[1763433506745,0.405504,3031.6,3031.5,0.001]
[1763433506947,0.4703,3031.7,3031.5,0.001]
[1763433507142,0.1849,3032.4,3031.6,0.88091668]
[1763433507387,0.1849,3032.4,3031.9,0.88091668]
[1763433507568,0.1849,3032.7,3032.0,0.88091668]
[1763433507751,0.1849,3032.7,3031.9,0.20554723]
[1763433507752,0.1849,3032.7,3032.3,0.88091668]
[1763433507951,0.6552,3032.7,3032.3,0.88091668]
[1763433508153,0.1849,3032.7,3032.4,0.88091668]
[1763433508360,0.6552,3033.1,3032.6,0.88091668]
[1763433508361,0.1849,3033.1,3032.6,0.88091668]
[1763433508657,0.1849,3033.1,3031.9,0.20554723]
[1763433508658,0.4703,3033.0,3032.5,0.88091668]
[1763433508862,0.1849,3033.1,3032.6,0.88091668]
[1763433509061,0.6552,3033.1,3032.6,0.88091668]
[1763433509284,0.6552,3033.1,3032.1,0.1899]
[1763433509285,0.6552,3033.1,3032.5,0.88091668]
[1763433509585,0.4703,3033.0,3032.5,0.88091668]
[1763433509749,0.1849,3032.6,3032.5,0.88091668]
[1763433510362,0.1849,3032.6,3032.4,0.88091668]
[1763433510594,0.1849,3033.1,3032.4,1.38010281]
[1763433510883,0.4703,3033.0,3032.5,0.88149407]
[1763433511086,0.4703,3033.0,3032.6,0.88149407]
[1763433511389,0.1849,3033.1,3032.6,0.88149407]
[1763433511749,0.1849,3032.7,3032.6,0.88149407]
[1763433512057,0.1849,3033.1,3032.6,0.88149407]
[1763433512976,0.1849,3033.1,3032.6,1.08709904]
[1763433513189,0.1849,3033.1,3032.6,0.88149407]
[1763433513375,0.4703,3033.0,3032.7,0.88149407]
[1763433513575,0.1849,3033.1,3032.7,0.88149407]
[1763433513963,0.1849,3033.1,3032.5,1.17455558]
[1763433513964,0.6552,3033.1,3032.6,0.88149407]
[1763433514184,0.1849,3032.8,3032.6,0.88149407]
[1763433514585,0.1849,3032.8,3032.3,0.88149407]
[1763433514752,0.1849,3032.8,3032.4,0.88149407]
[1763433515195,0.405504,3033.0,3032.3,0.88149407]
[1763433515397,0.1849,3032.9,3032.2,1.17455558]
[1763433515570,0.1849,3032.9,3031.9,1.76183337]
[1763433515571,0.1849,3032.9,3032.3,0.88246637]
[1763433515897,0.4703,3032.8,3032.3,0.88246637]
[1763433516792,0.1849,3032.9,3032.3,0.88246637]
[1763433516976,0.1849,3032.9,3032.5,0.88246637]
[1763433517180,0.1849,3032.9,3032.6,0.88246637]
[1763433518055,0.1849,3033.1,3032.7,0.88246637]
[1763433518268,0.4892,3033.0,3032.9,0.8827463]
[1763433518699,0.1849,3033.1,3032.9,0.8827463]
[1763433519095,0.4892,3033.0,3032.8,0.8827463]
[1763433519386,0.1849,3033.1,3032.9,0.8827463]
[1763433519588,0.1849,3033.1,3033.0,0.8827463]
[1763433519795,0.1849,3033.1,3032.9,0.8827463]
[1763433520156,0.1869,3034.0,3033.0,0.8827463]
[1763433520353,0.1869,3034.0,3033.4,0.8829618]
[1763433520569,0.1869,3034.0,3033.5,0.8829618]
[1763433520780,0.1869,3034.0,3032.3,3.55456246]
[1763433520781,0.1869,3034.0,3033.6,0.8829618]
[1763433520987,0.1869,3034.0,3033.7,0.8829618]
[1763433521308,0.002,3034.0,3033.9,1.17455558]
[1763433521808,0.4912,3034.0,3033.4,0.88242504]
[1763433522106,0.1849,3033.9,3033.4,0.88242504]
[1763433522309,0.002,3033.6,3033.1,0.88242504]
[1763433522483,0.002,3033.6,3032.9,0.88242504]
[1763433522680,0.4892,3033.5,3032.9,0.88242504]
[1763433523096,0.002,3033.6,3032.9,0.88242504]
[1763433523301,0.002,3033.6,3033.2,0.88242504]
[1763433523469,0.002,3033.6,3033.5,1.17455558]
[1763433523673,0.002,3033.6,3033.5,1.46819448]
[1763433524102,0.002,3033.6,3033.5,0.2936389]
[1763433524268,0.002,3033.6,3033.2,0.405504]
[1763433524472,0.002,3033.6,3033.4,0.405504]
[1763433524917,0.002,3033.6,3033.5,0.4964]
[1763433525087,0.002,3033.6,3033.3,0.405504]
[1763433525270,0.002,3033.6,3033.5,2.3512204]
[1763433525617,0.002,3033.6,3033.5,2.63696658]
[1763433526171,0.002,3033.6,3033.5,3.13336658]
[1763433526403,0.002,3033.6,3033.5,2.63696658]
[1763433526584,0.002,3033.6,3033.5,3.13336658]
[1763433527008,0.002,3033.6,3033.5,1.18666604]
[1763433527210,0.002,3033.6,3033.5,0.901904]
[1763433528905,0.002,3033.6,3033.3,2.92462626]
[1763433529108,0.002,3033.6,3033.4,0.4964]
[1763433529309,0.002,3033.6,3033.5,2.35203931]
[1763433529526,0.002,3033.6,3033.5,0.405504]
[1763433529714,0.002,3033.6,3033.5,0.901904]
[1763433530020,0.002,3034.0,3033.5,4.20918329]
[1763433530225,0.002,3034.0,3033.7,3.33013026]
[1763433530395,0.002,3034.0,3033.9,3.33013026]
[1763433530796,0.002,3034.0,3033.9,3.82653026]
[1763433531321,0.002,3034.4,3033.9,3.82653026]
[1763433531322,0.002,3034.4,3034.0,0.405504]
[1763433531526,0.002,3034.4,3034.3,0.592804]
[1763433531709,0.002,3034.4,3034.3,0.94519227]
[1763433531901,0.002,3034.4,3034.3,1.44159227]
[1763433532231,0.002,3034.4,3034.0,2.34538405]
[1763433532386,0.002,3034.4,3034.2,0.405504]
[1763433532810,0.002,3034.4,3034.3,0.901904]
[1763433534291,0.002,3034.4,3034.3,4.73328807]
[1763433536020,0.002,3034.4,3034.3,1.80889664]
[1763433536351,0.1933,3036.2,3034.4,1.31249664]
[1763433536508,0.4892,3036.7,3035.8,0.87688016]
[1763433536707,0.4892,3036.7,3036.0,0.87688016]
[1763433536925,0.1912,3037.0,3036.4,0.87688016]
[1763433537249,0.1912,3037.0,3035.9,0.6837]
[1763433537251,0.1849,3037.9,3037.0,0.405504]
[1763433537414,0.1849,3037.9,3037.1,0.87441725]
[1763433537612,0.1869,3038.1,3037.2,1.27992125]
[1763433537958,0.1869,3038.4,3037.6,0.405504]
[1763433538109,0.1869,3038.7,3037.8,1.27992125]
[1763433538309,0.6825,3039.0,3037.9,0.405504]
[1763433538510,0.1933,3039.0,3037.9,1.27992125]
[1763433538821,0.4892,3038.9,3037.9,0.405504]
[1763433539025,0.4892,3038.9,3037.8,1.11900715]
[1763433539026,0.1933,3039.0,3038.1,0.405504]
[1763433539338,0.1933,3039.0,3037.9,0.87441725]
[1763433539339,0.6825,3039.0,3037.9,0.87441725]
[1763433539571,0.6825,3039.0,3038.0,0.405504]
[1763433539833,0.1869,3039.2,3038.0,1.77632125]
[1763433540037,0.1869,3039.2,3038.1,0.6837]
[1763433540254,0.4892,3039.1,3037.9,0.87441725]
[1763433540456,0.4892,3039.1,3037.7,0.405504]
[1763433541344,0.4892,3039.1,3037.8,0.87441725]
[1763433541548,0.4892,3039.1,3037.7,0.901904]
[1763433541744,0.4892,3039.1,3037.8,0.405504]
[1763433542535,0.4892,3039.1,3037.4,0.87441725]
[1763433542735,0.1869,3039.5,3037.6,0.405504]
[1763433542942,0.4912,3039.8,3039.4,0.1873]
[1763433542943,0.002,3039.8,3039.4,0.1873]
[1763433543113,0.002,3039.8,3039.5,0.901904]
[1763433543518,0.002,3039.8,3039.6,0.4964]
[1763433544346,0.002,3039.8,3038.6,0.1873]
[1763433544347,0.4892,3039.7,3038.6,0.1873]
[1763433544533,0.4892,3039.7,3038.2,0.1873]
[1763433544855,0.4892,3039.7,3038.0,0.6837]
[1763433544856,0.4892,3039.7,3038.0,0.1873]
[1763433545169,0.4892,3039.7,3038.1,0.4964]
[1763433545343,0.4892,3039.7,3038.2,0.405504]
[1763433546362,0.002,3039.8,3038.4,0.405504]
[1763433546529,0.002,3039.8,3038.7,1.31249664]
[1763433546730,0.002,3039.8,3038.9,0.405504]
[1763433546918,0.002,3039.8,3038.9,1.31249664]
[1763433547121,0.002,3039.8,3038.8,2.130331]
[1763433547122,0.002,3039.8,3039.0,0.486]
[1763433547730,0.002,3039.8,3039.1,0.405504]
[1763433547946,0.002,3039.8,3039.3,0.405504]
[1763433548152,0.002,3039.8,3039.5,0.405504]
[1763433548557,0.002,3039.8,3039.7,0.405504]
[1763433548756,0.002,3039.8,3039.7,0.891504]
[1763433549570,0.002,3039.8,3039.3,0.405504]
[1763433549947,0.002,3039.8,3039.0,0.405504]
[1763433550253,0.002,3039.8,3039.4,0.405504]
[1763433550679,0.002,3039.8,3038.5,0.87441725]
[1763433550900,0.002,3039.8,3039.6,0.405504]
[1763433551254,0.002,3039.8,3039.7,0.891504]
[1763433551794,0.002,3039.8,3039.7,0.405504]
[1763433552474,0.002,3039.8,3039.7,0.891504]
[1763433552998,0.002,3039.8,3039.7,0.405504]
[1763433553200,0.002,3039.8,3038.6,1.36041725]
[1763433553360,0.002,3039.8,3038.4,1.16597775]
[1763433553361,0.002,3039.8,3038.8,0.405504]
[1763433553757,0.002,3039.8,3039.0,0.405504]
[1763433554163,0.002,3039.8,3039.2,0.405504]
[1763433554680,0.002,3039.8,3038.5,1.16597775]
[1763433554681,0.002,3039.8,3038.3,1.36041725]
[1763433554883,0.002,3039.8,3038.6,0.486]
[1763433555087,0.002,3039.8,3038.7,0.405504]
[1763433555461,0.002,3039.8,3038.6,0.486]
[1763433555462,0.4809,3039.8,3038.6,0.486]
[1763433555664,0.4809,3039.8,3038.7,0.405504]
[1763433555895,0.002,3039.8,3038.7,0.405504]
[1763433556068,0.002,3039.8,3038.9,0.405504]
[1763433556710,0.002,3039.8,3038.6,0.405504]
[1763433556888,0.002,3039.8,3038.6,0.891504]
[1763433557073,0.002,3039.8,3038.8,0.405504]
[1763433557274,0.002,3039.8,3038.8,1.27992125]
[1763433557503,0.002,3039.8,3039.0,0.405504]
[1763433557703,0.002,3039.8,3039.2,0.405504]
[1763433558105,0.002,3039.8,3039.0,0.405504]
[1763433558272,0.002,3039.8,3039.3,0.405504]
[1763433558469,0.002,3039.8,3039.1,0.405504]
[1763433559312,0.002,3039.8,3038.9,0.17659213]
[1763433559313,0.002,3039.8,3039.0,0.405504]
[1763433560294,0.4749,3039.8,3039.0,0.405504]
[1763433560625,0.4749,3039.8,3038.9,0.17659213]
[1763433560626,0.4729,3039.7,3038.9,0.17659213]
[1763433560767,0.4729,3039.7,3038.3,0.87441725]
[1763433560980,0.1887,3038.4,3037.6,0.87441725]
[1763433561181,0.1887,3038.4,3037.3,0.87441725]
[1763433561481,0.1887,3038.4,3036.9,0.1984]
[1763433561482,0.4729,3038.3,3037.2,0.87441725]
[1763433561890,0.4729,3038.3,3037.3,0.405504]
[1763433562092,0.4729,3038.3,3037.1,0.87441725]
[1763433562093,0.1849,3037.3,3037.1,0.87441725]
[1763433562293,0.1849,3037.3,3036.6,0.87441725]
[1763433562615,0.1849,3037.3,3035.8,2.8051471]
[1763433562616,0.4729,3037.2,3036.0,0.87441725]
[1763433562815,0.1914,3035.9,3035.6,0.87441725]
[1763433562977,0.04115768,3037.1,3035.7,0.2040395]
[1763433562978,0.90699264,3037.1,3035.7,0.2040395]
[1763433563182,0.90699264,3037.1,3035.3,0.87441725]
[1763433563183,0.1914,3035.8,3035.3,0.87441725]
[1763433563606,0.1914,3035.8,3035.2,0.87441725]
[1763433564117,0.1914,3036.4,3035.6,0.87441725]
[1763433564289,0.1914,3036.4,3035.6,1.27992125]
[1763433564480,0.1914,3036.4,3035.7,0.87441725]
[1763433564679,0.1914,3036.6,3035.8,0.87441725]
[1763433564883,0.1914,3036.6,3035.9,0.405504]
[1763433565080,0.4729,3036.5,3035.7,0.87441725]
[1763433565285,0.4729,3036.5,3035.5,0.87441725]
[1763433565519,0.4729,3036.5,3035.4,0.87441725]
[1763433566716,0.04116717,3036.4,3034.6,2.041395]
[1763433566919,0.4729,3036.5,3035.1,0.87441725]
[1763433567215,0.1914,3036.6,3035.7,0.87441725]
[1763433567417,0.6643,3036.6,3035.6,0.87441725]
[1763433567614,0.6643,3036.6,3035.7,0.87441725]
[1763433567821,0.4729,3037.2,3036.0,0.405504]
[1763433568029,0.1849,3037.3,3035.7,1.16597775]
[1763433568030,0.1849,3037.3,3036.5,0.87441725]
[1763433568207,0.4729,3037.2,3036.5,0.2040395]
[1763433568537,0.4729,3037.2,3036.0,1.75376033]
[1763433568538,0.4729,3037.2,3036.0,0.405504]
[1763433568941,0.4729,3037.2,3036.0,0.87441725]
[1763433569529,0.4729,3037.2,3036.0,1.27992125]
[1763433569843,0.90699264,3037.0,3035.6,0.87441725]
[1763433570048,0.1914,3035.7,3035.6,0.87441725]
[1763433570244,0.6643,3035.7,3035.0,0.87441725]
[1763433570746,0.4729,3035.9,3035.1,0.87441725]
[1763433570949,0.1914,3036.0,3035.2,0.87441725]
[1763433571253,0.1914,3036.0,3035.1,0.87441725]
[1763433571555,1.69960875,3037.9,3035.1,0.87441725]
[1763433571556,0.1914,3036.6,3035.6,0.405504]
[1763433571717,0.1914,3036.6,3035.8,0.405504]
[1763433572208,0.4729,3036.9,3035.8,0.405504]
[1763433572401,0.4729,3036.9,3036.0,1.27992125]
[1763433572600,0.23254549,3038.0,3036.2,0.405504]
[1763433572601,0.4729,3037.5,3036.2,0.405504]
[1763433572832,0.4729,3037.5,3036.2,1.27992125]
[1763433573202,0.4729,3037.5,3036.0,1.16597775]
[1763433573203,0.4729,3037.2,3036.0,0.87441725]
[1763433573407,0.4729,3037.2,3036.1,0.603904]
[1763433573745,0.4729,3037.2,3036.2,0.60001612]
[1763433574114,0.4729,3037.6,3036.3,0.405504]
[1763433575150,0.4729,3037.6,3036.3,0.872304]
[1763433575725,0.4602,3037.2,3036.1,0.87441725]
[1763433575926,0.4602,3037.2,3035.9,0.17467212]
[1763433576128,0.4602,3037.2,3035.9,1.04908937]
[1763433576754,0.4602,3037.2,3036.0,0.870104]
[1763433576915,0.1914,3038.0,3036.0,1.74452125]
[1763433577115,0.4602,3037.8,3036.2,1.27992125]
[1763433577357,0.4602,3037.8,3036.4,0.405504]
[1763433577922,0.1869,3037.3,3036.4,0.405504]
[1763433578957,0.1869,3037.3,3036.3,1.06871938]
[1763433578958,0.4602,3037.2,3036.3,0.19430213]
[1763433579122,0.4602,3037.2,3036.0,0.87441725]
[1763433579324,0.4602,3037.2,3036.1,1.07291725]
[1763433579538,0.4602,3037.2,3036.1,0.1985]
[1763433579734,0.4602,3037.2,3035.8,0.87441725]
[1763433579932,0.4602,3037.2,3035.4,0.87441725]
[1763433579933,0.1914,3035.9,3035.4,0.87441725]
[1763433580133,0.1914,3035.9,3035.3,0.87441725]
[1763433580338,0.1914,3035.9,3035.1,1.07281725]
[1763433580759,0.4602,3035.8,3034.6,0.87541725]
[1763433580968,0.4602,3035.8,3034.6,1.28092125]
[1763433581172,0.1914,3035.9,3034.9,0.87441725]
[1763433581363,0.1914,3035.9,3035.0,1.27992125]
[1763433581559,0.1914,3035.9,3035.0,0.87441725]
[1763433581770,0.6516,3035.9,3035.0,0.87441725]
[1763433582671,0.1914,3035.9,3035.1,1.47842125]
[1763433582877,0.1869,3037.3,3035.1,1.07291725]
[1763433582878,0.4602,3036.3,3035.1,1.07291725]
[1763433583172,0.1914,3036.3,3035.6,0.87441725]
[1763433583474,0.4602,3036.7,3035.7,0.87441725]
[1763433583475,0.1914,3036.6,3035.7,0.87441725]
[1763433583972,0.6516,3036.6,3035.8,0.87441725]
[1763433585393,0.4602,3036.5,3035.8,0.87441725]
[1763433585671,0.4602,3036.5,3035.6,0.87441725]
[1763433586098,4.43615981,3036.4,3035.4,0.87441725]
[1763433586404,4.39499264,3036.4,3035.1,0.87441725]
[1763433586692,0.90699264,3036.2,3035.1,0.87441725]
[1763433586880,0.4602,3036.3,3035.3,0.87441725]
[1763433587081,0.1914,3036.6,3035.5,0.87441725]
[1763433587283,0.1914,3036.6,3036.0,0.87441725]
[1763433587595,0.4602,3037.1,3036.3,0.87441725]
[1763433587888,0.4602,3037.1,3036.4,0.87441725]
[1763433588095,0.4602,3037.1,3036.4,1.07845675]
[1763433588258,0.4602,3037.1,3036.6,0.87441725]
[1763433588667,0.4602,3037.1,3036.5,0.87441725]
[1763433589376,0.4602,3037.1,3036.7,0.87441725]
[1763433590059,0.4602,3037.1,3036.5,1.16597775]
[1763433590060,3.893504,3036.7,3036.4,0.87441725]
[1763433590259,3.893504,3036.7,3035.1,7.11018021]
[1763433590260,0.0411631,3036.7,3035.8,1.16597775]
[1763433590460,0.4602,3036.6,3035.9,1.16597775]
[1763433590665,0.4602,3036.6,3036.2,1.16597775]
[1763433591284,0.4602,3036.6,3036.3,1.16597775]
[1763433591493,0.4602,3036.6,3036.2,1.16597775]
[1763433591688,0.4602,3036.6,3036.3,1.16597775]
[1763433591890,0.4602,3036.6,3036.1,1.16597775]
[1763433592081,0.4602,3036.6,3036.0,1.16597775]
[1763433592082,0.90699264,3036.5,3036.0,1.16597775]
[1763433592282,0.90699264,3036.5,3035.9,1.16597775]
[1763433592474,0.4602,3036.4,3035.9,1.16597775]
[1763433593366,0.4602,3036.4,3035.9,2.91973808]
[1763433593569,0.4602,3036.4,3036.1,1.16597775]
[1763433594190,0.4602,3036.4,3036.0,1.16597775]